{"text_format":"1","workbook":"xlsx","n_sheets":3,"sheets":["Rozvaha","Výsledovka","Ukazatele prezentace"],"not_rendered":{"charts":0,"images":0,"macros":1,"external_links":0,"defined_names":2,"comments":0,"pivot_tables":0},"unopened":[],"bounds":{"document_bytes":16777216,"sheet_cells":100000,"rows_first":2000,"rows_last":500,"rows_between":2000,"halvings":0,"cell_chars":16384,"cell_head_chars":4096},"cells_cut":0,"cells_raw":0,"read":"whole","date_system":"1900"}

{"sheet":"Rozvaha","index":0,"n_rows":123,"n_cols":12,"rows_kept":123,"cut":false,"hidden":false,"merged":[[38,6,38,7],[23,6,23,7],[42,6,42,7],[20,6,20,7],[13,6,13,7],[33,6,33,7],[34,6,34,7],[35,6,35,7],[25,6,25,7],[29,6,29,7],[16,6,16,7],[3,6,3,7],[5,6,5,7],[9,6,9,7],[14,6,14,7],[15,6,15,7]]}
["Název položky",2016,2017,2018]
["Rozdíl aktiv a pasiv",null,null,null,"údaje jsou v tis. Kč"]
["AKTIVA CELKEM",{"$f":"B5+B33+B65","v":544951},{"$f":"C5+C33+C65","v":844227},{"$f":"D5+D33+D65","v":1215047},null,null,null,"v %"]
["A.         POHLEDÁVKY ZA UPSANÝ ZÁKLADNÍ KAPITÁL",0,0,0,null,null,"Horizontální analýza",null,2016,2017,2018]
["B.         DLOUHODOBÝ MAJETEK",{"$f":"B6+B15+B25","v":78967},104566,{"$f":"D6+D15+D25","v":136801},null,null,"Aktiva celkem",null,"-"]
["B.I.       DLOUHODOBÝ NEHMOTNÝ MAJETEK  ",55568,60799,{"$f":"D9+D12+D13","v":96657},null,null,"Dlouhodobý majetek",null,"-",32.42,73.239999999999995]
["B.I.   1. Zřizovací výdaje ",null,null,null,null,null,null,"nehmotný","-",9.41,73.94]
["B.I.   2. Nehmotné výsledky výzkumu a vývoje",null,null,null,null,null,null,"hmotný","-",87.95,64.45]
["B.I.   3. Software  ",35697,40772,74717,null,null,null,"finanční","-",0.41,755.19]
["B.I.   4. Ocenitelná práva",null,null,null,null,null,"Oběžný majetek",null,"-",57.09,124.69]
["B.I.   5. Goodwill",null,null,null,null,null,null,"zásoby","-",0,"nelze procentně vyjádřit"]
["B.I.   6. Jiný dlouhodobý nehmotný majetek",17653,13656,9659,null,null,null,"pohledávky","-",59.02,123.01]
["B.I.   7. Nedokočený dlouhodobý nehmotný majetek",2218,6371,12281,null,null,null,"finační majetek","-",48.33,131.69999999999999]
["B.I.   8. Poskytnuté zálohy na dlouhodobý nehmotný majetek",3910,null,null,null,null,"časové rozlišení",null,null,176.74,599.55999999999995]
["B.II.      DLOUHODOBÝ HMOTNÝ MAJETEK",{"$f":"B17+B18+B22","v":23158},{"$f":"C17+C18","v":43525},{"$f":"D17+D18","v":38083},null,null,"Pasiva celkem",null,"-",54.92,122.96]
["B.II.  1. Pozemky",null,null,null,null,null,"VK",null,"-",52.97,128.44999999999999]
["B.II.  2. Stavby",16811,25837,20824,null,null,"CZ",null,"-",56.32,120.74]
["B.II.  3. Samostatné movité věci a soubory movitých věcí",2437,17688,17259,null,null,null,"rezervy","-",103.65,202.53]
["B.II.  4. Pěstitelské celky trvalých porostů",null,null,null,null,null,null,"závazky","-",62.22,164.72]
["B.II.  5. Základní stádo a tažná zvířata",null,null,null,null,null,null,"úvěry","-",38.049999999999997,37.26]
["B.II.  6. Jiný dlouhodobý hmotný majetek",null,null,null,null,null,"časové rozlišení",null,"-",0,164.02]
["B.II.  7. Nedokončený dlouhodobý hmotný majetek",3910]
["B.II.  8. Poskytnuté zálohy na dlouhodobý hmotný majetek",null,null,null,null,null,null,"v %","porovnávat s AKTIVA CELKEM DANÉHO ROKU"]
["B.II.  9. Oceňovací rozdíl k nabytému majetku",null,null,null,null,null,"Vertikální analýza",null,2016,2017,2018]
["B.III.     DLOUHODOBY FINANČNÍ MAJETEK",{"$f":"B26","v":241},242,{"$f":"D26+D28+D29","v":2061},null,null,"Aktiva celkem",null,544951,844277,1215047]
["B.III. 1. Podíly v ovládaných a řízených osobách",241,241,275,null,null,"Dlouhodobý majetek",null,14.49,12.39,11.26]
["B.III. 2. Podíly v účetních jednotkách pod podstatným vlivem ",null,null,null,null,null,null,"nehmotný",10.199999999999999,7.2,7.96]
["B.III. 3. Ostatní dlouhodobé cenné papíry a podíly",null,1,438,null,null,null,"hmotný",4.25,5.16,3.13]
["B.III. 4. Půjčky a úvěry - ovládající a řídící osoba, podstatný vliv",null,null,1348,null,null,null,"finanční",0.04,0.03,0.17]
["B.III. 5. Jiný dlouhodobý finanční majetek",null,null,null,null,null,"Oběžný majetek",null,84.34,85.51,84.99]
["B.III. 6. Pořizovaný dlouhodobý finanční majetek",null,null,null,null,null,null,"zásoby",0,0,0.04]
["B.III. 7. Poskytnuté zálohy na dlouhodobý finanční majetek",null,null,null,null,null,null,"pohledávky",69.12,70.94,69.13]
["C. OBĚŽNÁ AKTIVA",{"$f":"B34+B41+B50+B60","v":459592},{"$f":"C34+C41+C50+C60","v":721972},{"$f":"D34+D41+D50+D60","v":1032654},null,null,null,"finační majetek",15.22,14.57,15.81]
["C.I.       ZÁSOBY",0,0,538,null,null,"časové rozlišení",null,1.17,2.1,3.75]
["C.I.   1. Materiál",null,null,null,null,null,"Pasiva celkem",null,544951,844277,1215047]
["C.I.   2. Nedokončená výroba a polotovary",null,null,null,null,null,"VK",null,27.02,26.68,27.69]
["C.I.   3. Výrobky",null,null,null,null,null,null,"ZK + fondy, 72+76",5.22,3.37,2.34]
["C.I.   4. Zvířata ",null,null,null,null,null,null,"výsledek hospodaření, 84+87",21.8,23.31,25.34,"minulé+současné období"]
["C.I.   5. Zboží",null,null,538,null,null,"CZ",null,72.66,73.319999999999993,71.94]
["C.I.   6. Poskytnuté zálohy na zásoby",null,null,null,null,null,null,"rezervy",5.16,6.78,7]
["C.II.      DLOUHODOBÉ POHLEDÁVKY",{"$f":"B46+B49","v":597},8765,{"$f":"D46+D49","v":18837},null,null,null,"závazky",40.909999999999997,42.84,48.57]
["C.II.  1. Pohledávky z obchodních vztahů",null,null,null,null,null,null,"úvěry",26.6,23.7,16.37]
["C.II.  2. Pohledávky - ovládající a řídící osoba",null,null,null,null,null,"časové rozlišení",null,0.32,0,0.37]
["C.II.  3. Pohledávky - podstatný vliv"]
["C.II.  4. Pohledávky za společníky, členy dr. a za úč. sdružení"]
["C.II.  5. Dlouhodobé poskytnuté zálohy",41,2563,4222]
["C.II.  6. Dohadné účty aktivní"]
["C.II.  7. Jiné pohledávky "]
["C.II.  8. Odložená daňová pohledávka",556,6202,14615]
["C.III.     KRÁTKODOBÉ POHLEDÁVKY ",{"$f":"B52+B51+B56+B57+B58+B59","v":376070},{"$f":"C51+C52+C56+C57+C58+C59","v":590203},{"$f":"D51+D52+D56+D57+D58+D59","v":821139}]
["C.III. 1. Pohledávky z obchodních vztahů",113022,234565,339849]
["C.III. 2. Pohledávky - ovládající a řídící osoba",3576,17047,20047]
["C.III.  3. Pohledávky - podstatný vliv"]
["C.III. 4. Pohl. za společníky, členy dr. a za úč. sdružení"]
["C.III. 5. Sociální zabezpečení a zdravotní pojištění"]
["C.III. 6. Stát - daňové pohledávky",8833,7873,9020]
["C.III. 7. Krátkodobé poskytnuté zálohy",160881,188537,198328]
["C.III. 8. Dohadné účty aktivní",85847,125798,237215]
["C.III. 9. Jiné pohledávky",3911,16383,16680]
["C.IV.    KRÁTKODOBÝ FINANČNÍ MAJETEK",{"$f":"B61+B62","v":82925},{"$f":"C61+C62","v":123004},{"$f":"D61+D62","v":192140}]
["C.IV.1. Peníze",39,135,132]
["C.IV.2. Účty v bankách",82886,122869,192008]
["C.IV.3. Krátkodobé cenné papíry a podíly"]
["C.IV.4. Pořizovaný krátkodobý finanční majetek"]
["D.I.      ČASOVÉ ROZLIŠENÍ",{"$f":"B66","v":6392},17689,{"$f":"D66+D68","v":45592}]
["D.I.  1. Náklady příštích období",6392,17689,44716]
["D.I.  2. Komplexní náklady příštích období"]
["D.I.  3. Příjmy příštích období",null,null,876]
[]
["PASIVA CELKEM",{"$f":"B71+B88+B121","v":544951},{"$f":"C71+C88","v":844227},{"$f":"D71+D88+D121","v":1215047}]
["A. VLASTNÍ KAPITÁL",{"$f":"B72+B76+B84+B87","v":147248},{"$f":"C72+C76+C84+C87","v":225244},{"$f":"D72+D76+D84+D87","v":336395}]
["A.I.       ZÁKLADNÍ KAPITÁL",27950,27950,27950]
["A.I.   1. Základní kapitál",27950,27950,27950]
["A.I.   2. Vlastní akcie a vlastní obchodní podíly (-)"]
["A.I.   3. Změny základního kapitálu"]
["A.II.      KAPITÁLOVÉ FONDY ",500,500,500]
["A.II.  1. Emisní ážio"]
["A.II.  2. Ostatní kapitálové fondy",500,500,500]
["A.II.  3. Oceňovací rozdíly z přecenění majetku a závazků"]
["A.II.  4. Oceňovací rozdíly z přecenění při přeměnách"]
["A.III.     REZ. FOND, NEDĚL. FOND A OST. FONDY ZE ZISKU"]
["A.III. 1. Zákonný rezervní fond/Nedělitelný fond"]
["A.III. 2. Statutární a ostatní fondy"]
["A.IV.     VÝSLEDEK HOSPODAŘENÍ MINULÝCH LET",{"$f":"B86+B85","v":28397},118798,196794]
["A.IV. 1. Nerozdělený zisk minulých let ",29057,119458,196794]
["A.IV. 2. Neuhrazená ztráta minulých let",-660,-660]
["A.V.      VÝSLEDEK HOSPODAŘENÍ BĚŽNÉHO ÚČ. OBDOBÍ",90401,77996,111151]
["B. CIZI ZDROJE",{"$f":"B89+B105+B117","v":395980},{"$f":"C89+C105+C117","v":618983},{"$f":"D89+D105+D117","v":874103}]
["B.I.       REZERVY",{"$f":"B92+B93","v":28098},{"$f":"C92+C93","v":57222},{"$f":"D92+D93","v":85004}]
["B.I.   1. Rezervy podle zvláštních právních předpisů"]
["B.I.   2. Rezerva na důchody a podobné závazky"]
["B.I.   3. Rezerva na daň z příjmů",20835,21074,15810]
["B.I.   4. Ostatní rezervy",7263,36148,69194]
["B.II.      DLOUHODOBÉ ZÁVAZKY "]
["B.II.  1. Závazky z obchodních vztahů"]
["B.II.  2. Závazky - ovládající a řídící osoba"]
["B.II.  3. Závazky - podstatný vliv"]
["B.II.  4. Závazky ke společníkům, čl. dr. a k úč. sdružení"]
["B.II.  5. Dlouhodobé přijaté zálohy"]
["B.II.  6. Vydané dluhopisy"]
["B.II.  7. Dlouhodobé směnky k úhradě"]
["B.II.  8. Dohadné účty pasivní"]
["B.II.  9. Jiné závazky"]
["B.II.  10. Odložený daňový závazek"]
["B.III.     KRÁTKODOBÉ ZÁVAZKY ",{"$f":"B106+B109+B110+B111+B112+B113+B115+B116","v":222937},{"$f":"C106+C110+C111+C112+C113+C115+C116","v":361659},{"$f":"D106+D110+D111+D112+D113+D115+D116","v":590148}]
["B.III. 1. Závazky z obchodních vztahů ",86742,187123,349787]
["B.III. 2. Závazky - ovládající a řídící osoba"]
["B.III. 3. Závazky - podstatný vliv"]
["B.III. 4. Závazky ke společníkům, čl. dr. a k úč. sdružení",1146]
["B.III. 5. Závazky k zaměstnancům",16154,22465,30615]
["B.III. 6. Závazky ze sociálního zabezpečení a zdr. pojištění",9050,13433,17013]
["B.III. 7. Stát - daňové závazky a dotace",2872,4640,6176]
["B.III. 8. Krátkodobé přijaté zálohy",8698,7174,17199]
["B.III. 9. Vydané dluhopisy"]
["B.III.10. Dohadné účty pasivní",96574,123039,161082]
["B.III.11. Jiné závazky",1701,3785,8276]
["B.IV.    BANKOVNÍ ÚVĚRY A VÝPOMOCI ",{"$f":"B118+B119","v":144945},{"$f":"C118+C119","v":200102},{"$f":"D118+D119","v":198951}]
["B.IV.1. Bankovní úvěry dlouhodobé",12769,8356,4676]
["B.IV.2. Krátkodobé bankovní úvěry",132176,191746,194275]
["B.IV.3. Krátkodobé finanční výpomoci"]
["C.I.      ČASOVÉ ROZLIŠENÍ",1723,0,4549]
["C.I.  1. Výdaje příštích období ",null,null,4529]
["C.I.  2. Výnosy příštích období ",1723,null,20]

{"sheet":"Výsledovka","index":1,"n_rows":63,"n_cols":12,"rows_kept":63,"cut":false,"hidden":false,"merged":[[22,6,22,8],[23,6,23,8],[24,6,24,8],[25,6,25,8],[26,6,26,8],[53,4,59,4],[3,6,3,8],[4,6,4,8],[5,6,5,8],[6,6,6,8],[7,6,7,8],[8,6,8,8],[9,6,9,8],[10,6,10,8],[11,6,11,8],[12,6,12,8],[17,6,17,8],[18,6,18,8],[19,6,19,8],[20,6,20,8],[21,6,21,8]]}
["Název položky",2016,2017,2018]
["I. Tržby za prodej zboží  ",null,null,66,"údaje v tis. Kč"]
["A. Náklady vynaložené na prodané zboží",null,null,33,null,null,null,null,"v %"]
["OBCHODNÍ MARŽE ",null,null,{"$f":"D2-D3","v":33},null,null,"Horizontální analýza",null,null,2016,2017,2018]
["II. Výkony",8404404,18222686,27683349,null,null,"tržby (2+5)",null,null,"-",116.82,229.39]
["II.1. Tržby za prodej vlastních výrobků a služeb",8404404,18222686,{"$f":"D5","v":27683349},null,null,"náklady na tržby (3+9)",null,null,"-",119.9,235.57]
["II.2. Změna stavu zásob vlastní činnosti",null,null,null,null,null,"marže+přidaná hodnota (4+12)",null,null,"-",55.85,106.95]
["II.3. Aktivace",null,null,null,null,null,"osobní náklady (13)",null,null,"-",77.260000000000005,145.88999999999999]
["B. Výkonová spotřeba",{"$f":"B10+B11","v":8000490},{"$f":"C10+C11","v":17593199},{"$f":"D10+D11","v":26847465},null,null,"provozní výsledek hospodaření (31)",null,null,"-",39.06,14.15]
["B.1. Spotřeba materiálu a energie",6023,14953,10852,null,null,"finanční výsledek hospodaření (49)",null,null,"-",-184.27,-42.52]
["B.2. Služby   ",7994467,17578246,26836613,null,null,"výsledek hospodaření před zdaněním (62)",null,null,"-",-4.29,31.07]
["PŘIDANÁ HODNOTA",{"$f":"B5-B9","v":403914},{"$f":"C5-C9","v":629487},{"$f":"D5-D9","v":835884},null,null,"daň z příjmů (50)",null,null,"-",31.67,62.01]
["C. Osobní náklady  ",{"$f":"B14+B16","v":262932},{"$f":"C14+C16","v":466079},{"$f":"D14+D16","v":646528},null,null,"výsledek hospodaření po zdanění (61)",null,null,"-",-13.72,22.95]
["C.1. Mzdové náklady",195240,339544,471466]
["C.2. Odměny členům orgánů společnosti a družstva "]
["C.3. Náklady na sociální zabezpečení a zdravotní pojištění",67692,126535,175062]
["C.4. Sociální náklady",null,null,null,null,null,null,null,"v %","provnávat s: OBJEM TRŽEB (2+5)"]
["D. Daně a poplatky",6,24,93,null,null,"Horizontální analýza",null,null,2016,2017,2018]
["E. Odpisy dlouhodobého nehmotného a hmotného majetku ",12172,31967,42304,null,null,"tržby (2+5)",null,null,8404404,18222686,27683415]
["III. Tržby z prodeje dlouhodobého majetku a materiálu",null,17,61,null,null,"náklady na tržby (3+9)",null,null,95.19,96.55,96.98]
["III.1. Tržby z prodeje dlouhodobého majetku",null,17,61,null,null,"marže+přidaná hodnota (4+12)",null,null,4.8099999999999996,3.45,3.02]
["III.2. Tržby z prodeje materiálu",null,null,null,null,null,"osobní náklady (13)",null,null,3.13,2.56,2.34]
["F. Zůstatková cena  prodaného dlouh. majetku a materiálu",null,6,29,null,null,"provozní výsledek hospodaření (31)",null,null,1.76,1.1299999999999999,0.61]
["F.1.  Zůstatková cena prodaného dlouh. majetku",null,6,29,null,null,"finanční výsledek hospodaření (49)",null,null,-0.41,-0.53,-7.0000000000000007E-2]
["F.2.  Prodaný materiál",null,null,null,null,null,"výsledek hospodaření před zdaněním (62)",null,null,1.36,0.6,0.54]
["G. Změna stavu rezerv a opr. pol. v prov. obl. a kompl. nákl. př. obd.",null,28885,33046,null,null,"daň z příjmů (50)",null,null,0.28000000000000003,0.17,0.14000000000000001]
["IV. Ostatní provozní výnosy ",29739,112679,84275,null,null,"výsledek hospodaření po zdanění (61)",null,null,1.08,0.43,0.4]
["H. Ostatní provozní náklady",10380,9191,29129]
["V. Převod provozních výnosů"]
["I. Převod provozních nákladů"]
["PROVOZNÍ VÝSLEDEK HOSPODAŘENÍ",{"$f":"B12+B27-B13-B28-B18-B19","v":148163},{"$f":"C12-C13-C18-C19+C20-C23-C26+C27-C28","v":206031},{"$f":"D4+D12-D13-D18-D19+D20-D23-D26+D27-D28","v":169124}]
["VI. Tržby z prodeje cenných papírů a podílů "]
["J. Prodané cenné papíry a podíly"]
["VII. Vynosy z dlouhodobého finančního majetku"]
["VII.1. Výnosy z podílů v ovl. a říz. os. a v úč. j. pod podst. vlivem"]
["VII.2. Výnosy z ostatních dlouhodobých CP a podílů"]
["VII.3. Výnosy z ostatního dlouhodobého finančního majetku"]
["VIII. Výnosy z krátkodobého finančního majetku    "]
["K. Náklady z finančního majetku"]
["IX. Výnosy z přecenění CP a derivátů"]
["L. Náklady z přecenění CP a derivátů"]
["M. Změna stavu rezerv a opravných položek ve finanční oblasti"]
["X. Výnosové úroky",6,2,10]
["N. Nákladové úroky",565,300,207]
["XI. Ostatní finanční výnosy",26416,81589,149229]
["O. Ostatní finanční náklady",59920,178122,168610]
["XII. Převod finančních výnosů "]
["P. Převod finančních nákladů"]
["FINANČNÍ VÝSLEDEK HOSPODAŘENÍ",{"$f":"B43+B45-B44-B46","v":-34063},{"$f":"C43+C45-C44-C46","v":-96831},{"$f":"D43+D45-D44-D46","v":-19578}]
["Q. Daň z příjmů za běžnou činnost",{"$f":"B51+B52","v":23699},{"$f":"C52+C51","v":31204},{"$f":"D52+D51","v":38395}]
["Q. 1. splatná",24560,36850,46808]
["Q. 2. odložená",-861,-5646,-8413]
["VÝSLEDEK HOSPODAŘENÍ  ZA BĚŽNOU ČINNOST",{"$f":"B61","v":90401},{"$f":"C61","v":77996},{"$f":"D61","v":111151},"když není mimořádné, tak = ř. 61"]
["XIII. Mimořádné výnosy",null,null,null,"není"]
["R. Mimořádné náklady"]
["S. Daň z příjmů z mimořádné činnosti"]
["S. 1. splatná"]
["S. 2. odložená   "]
["MIMOŘÁDNÝ VÝSLEDEK HOSPODAŘENÍ"]
["T. Převod podílu na VH společníkům (+/-)"]
["VÝSLEDEK HOSPODAŘENÍ ZA ÚČETNÍ OBDOBÍ  (+/-)",{"$f":"B62-B50","v":90401},{"$f":"C62-C50","v":77996},{"$f":"D62-D50","v":111151},"po zdanění"]
["VÝSLEDEK HOSPODAŘENÍ PŘED ZDANĚNÍM (+/-)",{"$f":"B31+B49","v":114100},{"$f":"C31+C49","v":109200},{"$f":"D31+D49","v":149546}]
["čistý obrat obrat za účetní období",{"$f":"B2+B5+B20+B27+B29+B32+B34+B38+B40+B43+B45+B47","v":8460565},{"$f":"C2+C5+C20+C27+C29+C32+C34+C38+C40+C43+C45+C47","v":18416973},{"$f":"D2+D5+D20+D27+D29+D43+D45","v":27916990}]

{"sheet":"Ukazatele prezentace","index":2,"n_rows":32,"n_cols":5,"rows_kept":32,"cut":false,"hidden":false,"merged":[]}
[null,2016,2017,2018]
["analýza ziskovosti"]
["čistý zisk (EAT)",90401,77996,111151]
["zisk před zdaněním (EBT)",114100,109200,149546]
["zisk před úroky a zdaněním (EBIT)",113529,108898,149329]
["zisk před úroky, zdaněním a odpisy (EBITDA)",101357,76931,107025]
[]
["analýza rentability"]
["rentabilita tržeb (ROS)",1.0800000000000001E-2,4.3E-3,4.0000000000000001E-3,"VÝSLEDEK HOSPODAŘENÍ/TRŽBY, mělo by vycházet 2-50 %, ideálně přes 10 %"]
["rentabilita celkového kapitálu (ROA)",0.20830000000000001,0.129,0.1229,"EBIT/AKTIVA"]
["rentabilita vlastního kapitálu (ROE)",0.6139,0.3463,0.33040000000000003,"EAT/VLASTNÍ KAPITÁL"]
[]
["analýza aktivity"]
["rychlost obratu zásob","-","-",51456.160000000003,"TRŽBY/ZÁSOBY"]
["doba obratu zásob","-","-",7.0000000000000001E-3,"ZÁSOBY/TRŽBY*360"]
["rychlost obratu pohledávek",22.31,30.42,32.96,"TRŽBY/POHLEDÁVKY"]
["doba obratu pohledávek",4.84,4.63,4.42,"KTD POHLEDÁVKY Z OBCHOD. STYKU/TRŽBY *360"]
["doba obratu závazků",3.72,3.7,4.55,"KTD ZÁVAZKY Z OBCHOD. STYKU/TRŽBY *360"]
[]
["analýza likvidity"]
["běžná likvidita",5.29,3.85,2.9522300000000001,"OA/KTD ZÁVAZKY Z OBCH. STYKU"]
["pohotová likvidita",5.29,3.85,2.9506899999999998,"(OA-ZÁSOBY)/KTD ZÁVAZKY Z OBCH. STYKU"]
["peněžní likvidita",0.95,0.65,0.54,"PENĚŽNÍ PROSTŘEDKY/KTD ZÁVAZKY Z OBCHODNÍHO STYKU"]
[]
["analýza zadluženosti"]
["celková zadluženost",0.72660000000000002,0.73319999999999996,0.71940000000000004,"CIZÍ ZDROJE/AKTIVA *100"]
["míra zadluženosti",2.6892,2.7481,2.5182000000000002,"CIZÍ ZDROJE/VLASTNÍ KAPITÁL *100"]
["úrokové krytí",201.0478,362.99329999999998,721.39610000000005,"EBIT/NÁKLADOVÉ ÚROKY *100"]
[]
["ostatní ukazatele"]
["doba návratnosti úvěru",1.43,2.6,1.86,"VÝŠE ÚVĚRU/EBITDA"]
["čistý pracovní kapitál (NWC)",104479,168567,248231,"OA-KTD CIZÍ ZDROJE"]